bitfinex/quotes_SOLUSD_20240712
["timestamp","ask_amount","ask_price","bid_price","bid_amount"]
[1720758830109,7.353,136.0,135.96,7.3547]
[1720758830313,7.353,136.0,135.95,6.6035]
[1720758830314,7.3539,135.99,135.95,6.6035]
[1720758830936,18.3813,136.01,135.94,15.892]
[1720758831218,7.3536,135.99,135.94,15.892]
[1720758831410,7.3536,135.99,135.94,23.2478]
[1720758831794,7.3536,135.99,135.95,7.3555]
[1720758832222,29.22,136.02,135.94,15.892]
[1720758832223,7.3531,136.0,135.96,7.355]
[1720758832391,7.353,136.0,135.96,7.3546]
[1720758832794,69.748,136.04,135.96,7.3546]
[1720758832795,7.3525,136.01,135.96,7.3546]
[1720758833017,7.3532,136.0,135.95,7.3555]
[1720758833228,7.3535,135.99,135.95,7.3555]
[1720758834434,69.748,136.04,135.94,15.892]
[1720758834435,7.3519,136.02,135.94,15.892]
[1720758834730,12.50320164,136.06,135.99,15.2461]
[1720758834896,25.12697245,136.09,135.99,15.2461]
[1720758835105,7.3506,136.05,136.0,7.3527]
[1720758835303,18.90426786,136.09,136.0,7.3527]
[1720758835304,7.3497,136.06,136.01,7.3522]
[1720758836138,7.3497,136.06,136.02,7.3517]
[1720758836421,7.3495,136.07,136.02,7.3516]
[1720758837226,7.3493,136.07,136.03,7.3512]
[1720758837404,14.94305583,136.08,136.04,7.3505]
[1720758838023,14.94305583,136.08,136.03,7.3512]
[1720758838232,7.3497,136.06,136.02,13.3895]
[1720758838435,7.3493,136.07,136.02,13.3895]
[1720758839920,7.3498,136.06,136.02,13.3895]
[1720758840823,7.3504,136.05,136.01,7.3522]
[1720758841140,29.74425583,136.08,135.99,15.2461]
[1720758841141,7.35,136.06,135.99,15.2461]
[1720758841440,36.81425583,136.08,135.99,15.2461]
[1720758842329,7.35,136.06,136.02,7.3518]
[1720758842518,7.3502,136.05,136.01,7.3521]
[1720758842729,22.15,136.07,135.99,22.5995]
[1720758842920,7.3509,136.04,135.99,22.5995]
[1720758843118,40.5234,136.07,135.99,15.2461]
[1720758843322,36.81425583,136.08,135.99,15.2461]
[1720758843544,7.3493,136.07,136.02,7.3514]
[1720758843715,36.81425583,136.08,135.99,15.2461]
[1720758843917,7.59425583,136.08,135.99,15.2461]
[1720758844213,7.3503,136.05,135.99,15.2461]
[1720758844416,7.3511,136.04,136.0,7.3527]
[1720758844643,36.81425583,136.08,135.99,15.2461]
[1720758844839,7.3499,136.06,136.02,7.3517]
[1720758845038,7.59425583,136.08,135.99,15.2461]
[1720758845434,7.3504,136.05,136.01,7.352]
[1720758845638,7.3497,136.06,136.02,7.3518]
[1720758845941,7.3493,136.07,136.02,7.3518]
[1720758846318,7.3497,136.06,136.02,7.3518]
[1720758847130,7.3497,136.06,136.01,7.3522]
[1720758847323,7.3497,136.06,136.02,7.3518]
[1720758847530,7.59425583,136.08,135.99,15.2461]
[1720758847832,22.15,136.11,135.99,15.2461]
[1720758848034,7.3483,136.09,136.05,7.3498]
[1720758848238,7.60144329,136.11,136.0,45.0]
[1720758848548,7.349,136.08,136.04,7.3506]
[1720758848721,7.349,136.08,136.03,7.3509]
[1720758848922,7.3493,136.07,136.03,7.3509]
[1720758849446,7.60144329,136.11,136.04,7.3506]
[1720758849622,7.3483,136.09,136.05,7.3501]
[1720758849951,7.3494,136.07,136.0,45.0]
[1720758850154,7.3494,136.07,136.02,7.3515]
[1720758850458,7.3497,136.06,136.02,7.3515]
[1720758850749,48.12024329,136.11,136.02,7.3515]
[1720758850750,7.3493,136.07,136.02,7.3515]
[1720758851347,7.3493,136.07,136.03,7.3512]
[1720758851523,7.3488,136.08,136.03,7.3512]
[1720758851725,7.3488,136.08,136.04,7.3506]
[1720758851919,7.3483,136.09,136.04,7.3506]
[1720758852125,7.3492,136.07,136.03,7.351]
[1720758852724,7.3488,136.08,136.04,7.3506]
[1720758853747,7.3482,136.09,136.04,7.3506]
[1720758855037,7.3487,136.08,136.04,7.3506]
[1720758855749,7.3518,136.03,135.99,15.2461]
[1720758856131,7.352,136.02,135.99,15.2461]
[1720758856842,7.3515,136.03,135.99,15.2461]
[1720758857047,7.3515,136.03,135.99,22.5994]
[1720758857429,18.373,136.07,135.99,15.2461]
[1720758857636,7.3508,136.04,136.0,7.3526]
[1720758858036,7.3513,136.03,135.99,22.5993]
[1720758858546,7.3509,136.04,136.0,7.3528]
[1720758859136,14.95564228,136.06,136.02,7.3517]
[1720758859350,7.3493,136.07,136.02,7.3517]
[1720758859828,7.3494,136.07,136.03,7.3511]
[1720758860924,7.6039867,136.08,135.99,15.2461]
[1720758861125,7.3481,136.09,136.05,7.3501]
[1720758862142,7.3477,136.1,136.06,7.3495]
[1720758864149,7.3489,136.08,136.05,15.7997]
[1720758864343,7.3489,136.08,136.05,17.26951276]
[1720758864847,7.3482,136.09,136.05,24.61971276]
[1720758865053,7.3477,136.1,136.05,24.61971276]
[1720758865360,7.3471,136.11,136.07,7.3491]
[1720758865941,7.3471,136.11,136.05,17.26951276]
[1720758866253,7.3475,136.1,136.06,7.3495]
[1720758866645,14.95036802,136.12,136.05,15.7997]
[1720758866830,14.95036802,136.12,136.06,0.39235095]
[1720758866831,7.3469,136.12,136.06,0.39235095]
[1720758867355,7.346,136.13,136.06,0.39235095]
[1720758867551,7.3457,136.14,136.09,7.3475]
[1720758867864,7.3461,136.13,136.09,7.3475]
[1720758869168,7.3465,136.12,136.06,45.0]
[1720758869463,7.3475,136.1,136.06,7.3495]
[1720758869759,7.3478,136.1,136.05,23.75313846]
[1720758869971,7.3478,136.1,136.06,7.3495]
[1720758871446,7.3471,136.11,136.06,7.3495]
[1720758871648,7.3477,136.1,136.05,15.7997]
[1720758871946,7.3486,136.08,136.05,15.7997]
[1720758872141,69.7365,136.12,136.05,23.1499]
[1720758872340,7.3482,136.09,136.05,23.1499]
[1720758873063,29.22,136.12,136.05,15.7997]
[1720758873237,16.1144,136.13,136.05,15.7997]
[1720758873555,25.96560921,136.15,136.05,15.7997]
[1720758873869,7.3462,136.13,136.09,7.348]
[1720758874242,7.3464,136.12,136.07,7.3486]
[1720758874651,7.347,136.11,136.07,7.3486]
[1720758874955,25.96560921,136.15,136.07,7.3486]
[1720758875157,21.21339258,136.14,136.1,7.3474]
[1720758875457,7.3457,136.14,136.1,7.3474]
[1720758875660,7.3459,136.13,136.09,7.3479]
[1720758875838,7.3459,136.13,136.05,15.7997]
[1720758876043,7.3465,136.12,136.05,15.7997]
[1720758876251,7.60220921,136.15,136.05,15.7997]
[1720758876453,7.3461,136.13,136.09,7.348]
[1720758876764,7.3464,136.12,136.08,7.3483]
[1720758876944,7.3461,136.13,136.09,7.348]
[1720758877841,14.94750921,136.15,136.1,7.3474]
[1720758878143,7.3453,136.15,136.11,7.3468]
[1720758878345,7.3444,136.16,136.12,7.3463]
[1720758878560,7.3448,136.15,136.11,7.3467]
[1720758878772,7.3448,136.15,136.1,7.3472]
[1720758879758,7.3444,136.16,136.12,7.3464]
[1720758879946,7.345,136.15,136.1,7.347]
[1720758880148,7.3457,136.14,136.1,7.347]
[1720758880367,7.3457,136.14,136.05,15.7997]
[1720758880368,7.3459,136.13,136.09,7.3478]
[1720758880855,7.3453,136.15,136.1,7.3473]
[1720758881061,7.3453,136.15,136.11,7.3469]
[1720758881454,7.3454,136.14,136.1,7.3473]
[1720758881776,7.3462,136.13,136.05,15.7997]
[1720758882073,7.3454,136.14,136.1,13.5484]
[1720758882256,7.3459,136.13,136.1,6.2011]
[1720758882641,7.3456,136.14,136.1,13.5486]
[1720758882975,7.345,136.15,136.11,7.3469]
[1720758883464,7.3461,136.13,136.1,6.2011]
[1720758884239,7.3455,136.14,136.1,13.5485]
[1720758885146,7.346,136.13,136.1,6.2011]
[1720758886560,7.3454,136.14,136.1,13.5485]
[1720758886963,7.3449,136.15,136.11,7.3469]
[1720758888267,7.3454,136.14,136.1,13.5484]
[1720758888468,7.3459,136.13,136.1,6.2011]
[1720758888674,7.3459,136.13,136.09,7.3477]
[1720758888864,18.3596,136.17,136.11,7.3467]
[1720758889163,18.3596,136.17,136.09,7.3476]
[1720758889164,25.96135778,136.17,136.09,7.3476]
[1720758889352,7.3456,136.14,136.09,7.3476]
[1720758889675,7.3469,136.12,136.07,7.3486]
[1720758889872,7.3471,136.11,136.07,7.3486]
[1720758890253,56.238,136.15,136.05,15.7997]
[1720758890254,7.3482,136.09,136.05,15.7997]
[1720758890653,6.5545,136.14,136.01,7.3522]
[1720758890654,7.3502,136.05,136.01,7.3522]
[1720758890973,7.3502,136.05,136.0,7.3528]
[1720758891162,7.3508,136.04,135.99,7.353]
[1720758891363,7.3514,136.03,135.98,22.7895]
[1720758891559,7.3514,136.03,135.98,7.3539]
[1720758891867,7.3514,136.03,135.97,6.6338]
[1720758891868,7.3503,136.05,135.97,6.6338]
[1720758892177,36.5697,136.06,136.01,7.3521]
[1720758892385,7.3504,136.05,136.0,7.3525]
[1720758892675,7.3498,136.06,136.02,7.3517]
[1720758892848,7.3493,136.07,136.02,7.3517]
[1720758893261,36.5686,136.08,136.03,7.3513]
[1720758893572,7.3492,136.07,136.02,7.3516]
[1720758894467,7.3497,136.06,136.02,7.3516]
[1720758894963,7.3497,136.06,136.01,7.3521]
[1720758895165,7.3502,136.05,136.01,7.3521]
[1720758895772,7.3498,136.06,136.01,7.3521]
[1720758896082,7.3498,136.06,136.02,7.3518]
[1720758896570,7.3494,136.07,136.03,7.3512]
[1720758896788,72.68285312,136.1,135.97,6.6338]
[1720758896958,7.35,136.06,136.01,7.3522]
[1720758897157,7.3502,136.05,136.01,7.3522]
[1720758897857,42.15,136.09,135.99,1.47032287]
[1720758897858,7.351,136.04,135.99,1.47032287]
[1720758898059,7.3504,136.05,136.0,7.3526]
[1720758898371,7.3504,136.05,135.99,1.47032287]
[1720758898679,7.3498,136.06,136.02,7.3518]
[1720758898976,7.3493,136.07,136.03,7.3512]
[1720758899179,20.0,136.09,136.03,7.3512]
[1720758899364,27.60815322,136.09,136.03,7.3512]
[1720758899559,14.95625322,136.09,136.01,15.9318]
[1720758899782,14.95625322,136.09,136.05,7.35]
[1720758899961,7.3486,136.08,136.03,7.3511]
[1720758900166,7.3492,136.07,136.03,7.3511]
[1720758900764,29.75815322,136.09,136.01,15.9318]
[1720758900983,7.3506,136.05,136.01,15.9318]
[1720758901172,7.60815322,136.09,136.01,15.9318]
[1720758901377,7.60815322,136.09,136.05,7.3498]
[1720758901876,7.3481,136.09,136.04,7.3505]
[1720758902176,22.15,136.1,136.03,7.3512]
[1720758902575,51.37,136.1,136.02,7.3517]
[1720758902889,29.22,136.1,136.03,7.3511]
[1720758903184,7.3488,136.08,136.04,7.3505]
[1720758903374,7.3482,136.09,136.04,7.3505]
[1720758903780,29.22,136.1,136.01,15.9318]
[1720758903781,7.3493,136.07,136.01,15.9318]
[1720758904080,51.37,136.1,136.01,15.9318]
[1720758904081,7.3491,136.08,136.01,15.9318]
[1720758904382,7.3491,136.08,136.04,7.3505]
[1720758905364,7.3491,136.08,136.03,7.3511]
[1720758905573,22.15,136.09,136.02,7.3515]
[1720758905779,7.35,136.06,136.01,23.284]
[1720758906679,7.35,136.06,136.02,7.3518]
[1720758906980,7.35,136.06,135.97,22.9597]
[1720758906981,22.15,136.06,135.97,22.9597]
[1720758907154,51.37,136.06,135.97,22.9597]
[1720758907480,7.3521,136.02,135.98,7.3539]
[1720758907776,7.3521,136.02,135.97,30.314]
[1720758907986,7.3524,136.01,135.97,30.314]
[1720758908567,7.3524,136.01,135.97,7.3543]
[1720758909468,7.3524,136.01,135.94,22.5572]
[1720758909660,7.353,136.0,135.94,22.5572]
[1720758910165,7.3535,135.99,135.95,7.3552]
[1720758910883,7.3531,136.0,135.96,7.355]
[1720758911181,7.3531,136.0,135.95,7.3554]
[1720758911785,7.3531,136.0,135.96,7.355]
[1720758911963,51.37,136.04,135.97,7.3544]
[1720758912171,20.0,136.03,135.97,7.3544]
[1720758912386,27.61480593,136.03,135.97,7.3544]
[1720758912573,27.61480593,136.03,135.96,7.3548]
[1720758912574,49.76480593,136.03,135.96,7.3548]
[1720758913462,27.61480593,136.03,135.98,7.3539]
[1720758913671,27.61480593,136.03,135.97,7.3543]
[1720758913871,27.61480593,136.03,135.96,7.3548]
[1720758913872,7.3527,136.01,135.96,7.3548]
[1720758914084,7.353,136.0,135.96,7.3548]
[1720758915878,7.3524,136.01,135.97,7.3544]
[1720758916270,27.61480593,136.03,135.94,22.5572]
[1720758916271,7.61480593,136.03,135.94,22.5572]
[1720758917086,7.61480593,136.03,135.95,45.0]
[1720758917290,14.96640593,136.03,135.95,45.0]
[1720758917886,14.96640593,136.03,135.98,7.3536]
[1720758918268,14.96640593,136.03,135.99,7.3531]
[1720758918589,7.61480593,136.03,136.02,7.3518]
[1720758918763,7.46998171,136.09,136.01,23.0546]
[1720758918764,7.3492,136.07,136.03,7.3512]
[1720758918973,15.08191876,136.09,136.04,7.3505]
[1720758919163,14.96013705,136.09,136.04,7.3505]
[1720758919481,7.61193705,136.09,136.02,1.47019556]
[1720758919674,7.61193705,136.09,136.03,1.4697864]
[1720758919875,7.3477,136.1,136.03,1.4697864]
[1720758920185,7.3481,136.09,136.05,7.3501]
[1720758920368,48.12790146,136.12,136.03,0.40977611]
[1720758920568,25.97790146,136.12,136.01,23.0546]
[1720758920882,7.348,136.1,136.05,7.3498]
[1720758921273,25.97790146,136.12,136.05,7.3498]
[1720758921274,7.3481,136.09,136.05,7.3498]
[1720758921468,7.3476,136.1,136.05,7.3498]
[1720758921786,25.97790146,136.12,136.02,45.0]
[1720758921787,7.61060146,136.12,136.07,7.349]
[1720758921964,14.95710146,136.12,136.07,7.349]
[1720758922164,7.3471,136.11,136.07,7.349]
[1720758922386,7.3478,136.1,136.02,45.0]
[1720758922591,7.348,136.09,136.05,7.3497]
[1720758923484,7.3476,136.1,136.05,7.3497]
[1720758923866,7.3486,136.08,136.02,45.0]
[1720758924063,7.3482,136.09,136.04,7.3504]
[1720758924487,22.15,136.1,136.03,7.3512]
[1720758924789,18.3678,136.11,136.04,7.3503]
[1720758924986,7.3484,136.09,136.05,7.3502]
[1720758925198,7.3477,136.1,136.06,7.3493]
[1720758925594,7.3477,136.1,136.01,23.0546]
[1720758925595,14.95720146,136.12,136.01,33.0546]
[1720758925768,14.95720146,136.12,136.02,45.0]
[1720758925964,7.347,136.11,136.07,7.3489]
[1720758926169,7.3471,136.11,136.06,7.3493]
[1720758926470,7.61060146,136.12,136.02,45.0]
[1720758926681,7.347,136.11,136.06,7.3493]
[1720758926986,7.348,136.09,136.05,7.3502]
[1720758927893,7.61060146,136.12,136.06,7.3496]
[1720758928281,7.3473,136.11,136.06,7.3496]
[1720758929092,14.95710146,136.12,136.08,7.3486]
[1720758929792,7.61060146,136.12,136.02,74.22]
[1720758929998,7.3455,136.14,136.09,7.3476]
[1720758930805,7.3455,136.14,136.1,7.3474]
[1720758931303,7.67706999,136.15,136.11,7.3469]
[1720758931304,7.345,136.15,136.11,7.3469]
[1720758931519,7.345,136.15,136.06,0.74034227]
[1720758931520,2.96082127,136.17,136.06,29.22]
[1720758931687,10.30482127,136.17,136.12,7.3463]
[1720758931887,7.3444,136.16,136.12,7.3463]
[1720758932288,7.3439,136.17,136.13,7.3458]
[1720758932499,15.02335192,136.18,136.13,7.3458]
[1720758933506,7.3438,136.17,136.13,7.3458]
[1720758933710,7.3446,136.16,136.12,8.81249476]
[1720758934081,7.3449,136.15,136.11,29.8709]
[1720758934418,7.3439,136.17,136.12,7.3464]
[1720758934614,15.02355192,136.18,136.14,7.3452]
[1720758934798,15.02355192,136.18,136.13,7.3457]
[1720758935000,7.3439,136.17,136.13,7.3457]
[1720758935502,7.3439,136.17,136.11,22.5242]
[1720758935503,7.67995192,136.18,136.11,22.5242]
[1720758935690,29.82995192,136.18,136.11,22.5242]
[1720758935888,7.3452,136.15,136.11,7.3469]
[1720758936110,7.3441,136.17,136.08,16.3311]
[1720758936287,7.3441,136.17,136.12,7.346]
[1720758936484,15.02315192,136.18,136.1,1.46884033]
[1720758936681,15.02315192,136.18,136.14,7.345]
[1720758937102,7.3437,136.17,136.13,7.3456]
[1720758937694,7.67995192,136.18,136.14,7.345]
[1720758937891,7.67995192,136.18,136.15,7.3447]
[1720758938808,7.67995192,136.18,136.14,7.3451]
[1720758939714,7.3428,136.19,136.14,7.3451]
[1720758940310,41.64308145,136.28,136.2,7.3416]
[1720758940608,8.1855011,136.25,136.21,7.3415]
[1720758941025,0.8457011,136.25,136.22,7.3409]
[1720758941314,0.8457011,136.25,136.21,7.3413]
[1720758941615,0.8457011,136.25,136.22,7.341]
[1720758942001,0.8457011,136.25,136.21,7.3414]
[1720758942394,0.8457011,136.25,136.23,7.3401]
[1720758942789,8.1852011,136.25,136.18,1.46813266]
[1720758943011,0.8457011,136.25,136.18,46.46813266]
[1720758943817,8.1852011,136.25,136.21,7.3414]
[1720758944321,0.8457011,136.25,136.21,7.3414]
[1720758944922,0.8457011,136.25,136.22,7.341]
[1720758945304,8.1852011,136.25,136.21,7.3414]
[1720758945504,0.8457011,136.25,136.15,51.7999]
[1720758945826,0.8457011,136.25,136.19,7.3425]
[1720758945827,7.3406,136.23,136.19,7.3425]
[1720758946136,7.3406,136.23,136.18,7.343]
[1720758946497,7.3412,136.22,136.18,7.343]
[1720758946830,22.15,136.24,136.15,1.46864266]
[1720758946831,40.5002,136.24,136.15,1.46864266]
[1720758947000,45.0,136.23,136.18,7.3428]
[1720758947420,7.3413,136.22,136.17,7.3435]
[1720758947628,7.3413,136.22,136.18,7.343]
[1720758947812,7.3407,136.23,136.18,7.343]
[1720758948007,67.15,136.24,136.18,7.343]
[1720758948617,7.3413,136.22,136.18,7.343]
[1720758949009,7.3413,136.22,136.17,7.3436]
[1720758949410,7.3416,136.21,136.17,7.3436]
[1720758949921,7.3411,136.22,136.13,1.46867378]
[1720758950119,46.6776011,136.25,136.13,1.46867378]
[1720758950424,20.0,136.24,136.13,75.68867378]
[1720758950632,17.4576011,136.25,136.13,75.68867378]
[1720758951335,7.3403,136.24,136.2,7.342]
[1720758951697,8.1852011,136.25,136.21,7.3415]
[1720758952141,0.8457011,136.25,136.16,1.46817078]
[1720758952422,0.8457011,136.25,136.21,7.3414]
[1720758952816,8.1853011,136.25,136.21,7.3414]
[1720758953020,7.3406,136.23,136.19,7.3426]
[1720758953232,7.3402,136.24,136.19,7.3426]
[1720758953437,8.1853011,136.25,136.2,1.46773998]
[1720758953637,8.1853011,136.25,136.21,7.3411]
[1720758953835,8.1853011,136.25,136.2,7.3419]
[1720758954231,8.1853011,136.25,136.21,7.3415]
[1720758954540,7.3402,136.24,136.16,1.46773998]
[1720758954747,7.3402,136.24,136.2,7.3419]
[1720758955048,7.3402,136.24,136.19,7.3423]
[1720758955227,7.3402,136.24,136.16,1.46773998]
[1720758955228,8.1852011,136.25,136.16,1.46773998]
[1720758955419,8.1852011,136.25,136.16,46.46773998]
[1720758956419,8.1852011,136.25,136.2,7.3419]
[1720758956720,8.1852011,136.25,136.21,7.3413]
[1720758956937,0.8457011,136.25,136.21,1.46726926]
[1720758957133,0.8457011,136.25,136.22,7.3409]
[1720758957334,8.1855011,136.25,136.2,7.3418]
[1720758957548,7.3407,136.23,136.19,7.3424]
[1720758958844,0.8457011,136.25,136.16,45.0]
[1720758958845,7.3416,136.21,136.17,7.3435]
[1720758959031,7.3412,136.22,136.18,7.3427]
[1720758959233,7.3407,136.23,136.18,7.3427]
[1720758960117,7.3407,136.23,136.19,7.3425]
[1720758960553,7.341,136.22,136.18,7.343]
[1720758961058,23.8972,136.21,136.17,7.3435]
[1720758961268,23.8972,136.21,136.16,7.344]
[1720758961453,16.5553,136.21,136.12,22.8257]
[1720758961630,16.5553,136.21,136.18,7.343]
[1720758962568,38.7053,136.21,136.12,22.8257]
[1720758962867,16.5553,136.21,136.12,22.8257]
[1720758963170,7.3441,136.17,136.09,10.0]
[1720758963335,16.5553,136.21,136.14,7.3452]
[1720758963536,7.3432,136.18,136.14,7.3452]
[1720758964363,7.3432,136.18,136.13,7.3457]
[1720758964569,7.3428,136.19,136.14,7.3452]
[1720758964944,7.3428,136.19,136.15,7.3446]
[1720758965266,7.3428,136.19,136.14,7.3451]
[1720758965471,29.8300007,136.2,136.13,7.3457]
[1720758965673,29.8300007,136.2,136.12,7.3462]
[1720758965674,7.344,136.17,136.12,7.3462]
[1720758966765,7.3443,136.16,136.12,7.3462]
[1720758967369,7.3438,136.17,136.13,7.3458]
[1720758967745,7.3433,136.18,136.14,7.3452]
[1720758968144,29.4933,136.18,136.14,7.3452]
[1720758968349,7.3438,136.17,136.13,7.3456]
[1720758968548,7.3438,136.17,136.09,1.11433871]
[1720758968549,7.3438,136.17,136.12,7.3462]
[1720758968752,7.3438,136.17,136.08,21.4426]
[1720758968753,22.15,136.18,136.11,7.3469]
[1720758969681,7.3452,136.15,136.11,7.3469]
[1720758969858,29.4945,136.16,136.12,7.3463]
[1720758970378,45.0,136.18,136.13,7.3458]
[1720758970379,7.3434,136.18,136.13,7.3458]
[1720758970680,7.3434,136.18,136.14,7.3453]
[1720758970855,7.3439,136.17,136.08,21.4426]
[1720758971058,7.3439,136.17,136.09,45.0]
[1720758971458,7.3439,136.17,136.13,7.3458]
[1720758971952,7.3428,136.19,136.14,7.345]
[1720758972159,7.3433,136.18,136.14,7.345]
[1720758973287,7.6800007,136.2,136.15,1.46847918]
[1720758973489,7.6800007,136.2,136.1,39.22]
[1720758973490,6.5024,136.23,136.19,7.3423]
[1720758973705,17.0903011,136.25,136.15,1.46804775]
[1720758973984,7.3401,136.24,136.2,7.3416]
[1720758974184,7.3406,136.23,136.19,7.3424]
[1720758974482,7.3419,136.21,136.16,7.3439]
[1720758974654,7.3411,136.22,136.15,0.38315915]
[1720758974854,7.3411,136.22,136.18,7.3429]
[1720758975054,24.76741919,136.25,136.14,22.0232]
[1720758975357,7.3409,136.23,136.19,7.3425]
[1720758975555,7.3401,136.24,136.15,45.0]
[1720758975758,7.3401,136.24,136.2,7.342]
[1720758975987,7.3406,136.23,136.19,7.3424]
[1720758976189,7.3406,136.23,136.18,7.343]
[1720758976581,7.341,136.22,136.18,7.343]
[1720758977087,7.3405,136.23,136.19,7.3426]
[1720758977295,24.76741919,136.25,136.19,7.3426]
[1720758977485,7.3403,136.24,136.19,7.3426]
[1720758977792,8.52281919,136.25,136.21,7.3412]
[1720758977990,8.52281919,136.25,136.22,7.341]
[1720758978289,0.8457011,136.25,136.23,7.3403]
[1720758978790,0.8457011,136.25,136.17,1.4643126]
[1720758978978,8.1852011,136.25,136.2,7.3417]
[1720758979173,7.3402,136.24,136.2,7.3417]
[1720758979379,7.3407,136.23,136.19,7.3425]
[1720758979582,7.3411,136.22,136.14,51.2432]
[1720758979891,8.1853011,136.25,136.15,20.0]
[1720758980065,8.1853011,136.25,136.21,7.3415]
[1720758980269,0.8457011,136.25,136.16,29.22]
[1720758980670,0.8457011,136.25,136.17,0.41223871]
[1720758980989,0.8457011,136.25,136.17,45.0]
[1720758981194,0.8457011,136.25,136.22,7.341]
[1720758982291,0.8457011,136.25,136.23,7.3405]
[1720758982484,0.8457011,136.25,136.24,7.3399]
[1720758985481,0.8457011,136.25,136.24,8.80734852]
[1720758985983,0.8457011,136.25,136.24,7.3399]
[1720758986595,7.67540135,136.31,136.22,60.5188]
[1720758986795,34.75221026,136.39,136.31,7.3361]
[1720758986796,45.1512011,136.39,136.31,7.3361]
[1720758986976,7.3337,136.36,136.32,7.3356]
[1720758987379,7.3342,136.35,136.31,7.336]
[1720758987581,7.3347,136.34,136.27,1.46719605]
[1720758987780,7.3353,136.33,136.28,7.3373]
[1720758987986,7.3353,136.33,136.29,7.3371]
[1720758988218,7.3339,136.36,136.24,39.22]
[1720758988502,7.3339,136.36,136.31,7.3361]
[1720758988813,7.3347,136.34,136.3,7.3365]
[1720758989187,7.3339,136.36,136.32,7.3356]
[1720758989504,7.3339,136.36,136.25,20.0]
[1720758989703,7.3341,136.35,136.31,7.336]
[1720758989900,22.15,136.36,136.24,29.22]
[1720758990204,22.15,136.36,136.25,65.0]
[1720758990684,7.3353,136.33,136.29,7.3369]
[1720758990880,43.9371,136.34,136.26,1.46730668]
[1720758991088,43.9371,136.34,136.28,7.3376]
[1720758991089,7.3358,136.32,136.28,7.3376]
[1720758991406,7.3358,136.32,136.27,7.3381]
[1720758991715,7.3362,136.31,136.22,50.5188]
[1720758992013,7.3362,136.31,136.26,7.3385]
[1720758992189,7.3362,136.31,136.27,7.3381]
[1720758992389,7.3346,136.34,136.3,7.3363]
[1720758992802,7.3346,136.34,136.24,29.22]
[1720758993113,7.3365,136.31,136.27,7.338]
[1720758993315,7.3369,136.3,136.26,7.3388]
[1720758993624,7.3363,136.31,136.26,7.3388]
[1720758993801,7.3367,136.3,136.26,7.3388]
[1720758994124,22.15,136.33,136.22,21.2988]
[1720758994290,22.15,136.31,136.23,1.46776413]
[1720758994613,22.15,136.31,136.22,21.2988]
[1720758995184,7.3373,136.29,136.25,7.339]
[1720758995402,22.15,136.31,136.23,7.3401]
[1720758995606,7.3383,136.28,136.23,7.3401]
[1720758995910,7.3383,136.28,136.24,7.3399]
[1720758996112,7.3369,136.3,136.26,7.3387]
[1720758996803,7.3363,136.31,136.2,1.46776675]
[1720758997008,7.3363,136.31,136.26,7.3384]
[1720758997314,7.3368,136.3,136.26,7.3384]
[1720758998221,29.82531482,136.32,136.24,7.3397]
[1720758998405,42.15,136.31,136.24,7.3397]
[1720758999006,7.3387,136.27,136.22,7.3408]
[1720758999514,7.3374,136.29,136.19,6.6438]
[1720758999696,7.3374,136.29,136.2,45.0]
[1720759000014,7.3374,136.29,136.25,7.3391]
[1720759000524,7.3367,136.3,136.26,7.3388]
[1720759001006,7.67531482,136.32,136.27,1.46415987]
[1720759001196,23.1188,136.34,136.27,1.46415987]
[1720759001398,20.0,136.33,136.27,1.46415987]
[1720759001714,27.3354,136.33,136.29,7.3372]